lending/lending_fUSD_20260124
["ID","MTS","AMOUNT","RATE_DAILY","PERIOD"]
[403174762,1769243076634,-118.77949577,0.00012493,2]
[403174763,1769243078163,-32.22050423,0.00012493,2]
[403174764,1769243078222,-151.0,0.00012493,2]
[403174765,1769243078278,-66.51050078,0.00012498,2]
[403174766,1769243080176,-291.62367621,0.00012498,2]
[403174767,1769243080245,-314.34256659,0.00012498,2]
[403174768,1769243080325,-500.0,0.00012498,2]
[403174769,1769243080401,-328.26207685,0.00012498,2]
[403174770,1769243080485,-500.0,0.00012498,2]
[403174771,1769243080566,-584.50374353,0.00012498,2]
[403174772,1769243080638,-205.07204635,0.00012498,2]
[403174773,1769243080966,-456.37974066,0.00012499,2]
[403174774,1769243081719,-2131.34167205,0.00012499,2]
[403174775,1769243082889,-319.213865,0.00012499,2]
[403174776,1769243082998,-10000.01,0.00012499,2]
[403174777,1769243084411,-182.90599654,0.00012499,2]
[403174778,1769243086140,-10000.01,0.00012499,2]
[403174779,1769243086703,-171.36709239,0.00012499,2]
[403174780,1769243089376,-10000.01,0.00012499,2]
[403174781,1769243090881,-158.32296483,0.00012499,2]
[403174782,1769243092259,-10000.01,0.00012499,2]
[403174783,1769243094771,-594.55930104,0.00012499,2]
[403174784,1769243095280,-10000.01,0.00012499,2]
[403174785,1769243096884,-238.55936507,0.00012499,2]
[403174786,1769243099752,-161.94720577,0.00012499,2]
[403174787,1769243102059,-221.0,0.00012498,2]
[403174788,1769243102114,-197.68736678,0.00012498,2]
[403174789,1769243104729,-302.46509455,0.00012498,2]
[403174790,1769243107728,-212.15196144,0.00012498,2]
[403174791,1769243112531,-179.75030881,0.00012498,2]
[403174792,1769243121224,1852.42,0.0001236,2]
[403174793,1769243135415,5272.46458787,0.0001,2]
[403174794,1769243136905,-151.0,0.00012497,2]
[403174795,1769243136981,-307.94526842,0.00012498,2]
[403174796,1769243137039,-40.50573916,0.00012498,2]
[403174797,1769243139679,-259.49426084,0.00012498,2]
[403174798,1769243139780,-150.94889285,0.00012498,2]
[403174799,1769243148458,-200.95907073,0.00012498,2]
[403174800,1769243150609,-148.09203642,0.00012498,2]
[403174801,1769243150703,-351.90796358,0.00012498,2]
[403174802,1769243152868,-148.09203642,0.00012498,2]
[403174803,1769243152965,-41.7828191,0.00012498,2]
[403174804,1769243156256,-167.17532628,0.00012498,2]
[403174805,1769243158714,-291.04185462,0.00012498,2]
[403174806,1769243158816,-12.00619478,0.00012498,2]
[403174807,1769243159550,2875.12541213,8e-05,2]
[403174808,1769243159624,7462.35996427,8e-05,2]
[403174809,1769243162175,-200.57604426,0.00012497,2]
[403174810,1769243163416,2537.65003573,0.00011,2]
[403174811,1769243163481,6891.69208493,0.00011,2]
[403174812,1769243163816,-99.42395574,0.00012497,2]
[403174813,1769243163926,-103.16494687,0.00012498,2]
[403174814,1769243165783,-233.13295432,0.00012498,2]
[403174815,1769243167044,-151.69590403,0.00012498,2]
[403174816,1769243167155,-484.01642094,0.00012498,2]
[403174817,1769243170354,-15.98357906,0.00012498,2]
[403174818,1769243170422,-158.02750645,0.00012498,2]
[403174819,1769243173230,-78.8464859,0.00012498,2]
[403174820,1769243173350,-221.1535141,0.00012498,2]
[403174821,1769243176781,-187.10365935,0.00012498,2]
[403174822,1769243178966,-91.74282655,0.00012498,2]
[403174823,1769243179066,-108.25717345,0.00012498,2]
[403174824,1769243180677,-218.91069413,0.00012498,2]
[403174825,1769243182870,-172.83213242,0.00012498,2]
[403174826,1769243182974,-45.41014116,0.00012498,2]
[403174827,1769243185829,-191.34917825,0.00012498,2]
[403174828,1769243188624,-249.99807935,0.00012498,2]
[403174829,1769243191193,-13.24260124,0.00012498,2]
[403174830,1769243191292,-189.09753132,0.00012498,2]
[403174831,1769243193412,-267.10960323,0.00012498,2]
[403174832,1769243193574,-43.79286545,0.00012498,2]
[403174833,1769243193684,-500.0,0.00012498,2]
[403174834,1769243193795,-500.0,0.00012498,2]
[403174835,1769243193905,-500.0,0.00012498,2]
[403174836,1769243194017,-500.0,0.00012498,2]
[403174837,1769243194125,-500.0,0.00012498,2]
[403174838,1769243194233,-500.0,0.00012498,2]
[403174839,1769243194346,-500.0,0.00012498,2]
[403174840,1769243194457,-500.0,0.00012498,2]
[403174841,1769243194568,-500.0,0.00012498,2]
[403174842,1769243195785,-286.16054555,0.00012499,2]
[403174843,1769243199742,-389.35788943,0.00012499,2]
[403174844,1769243203196,-152.90282489,0.00012377,2]
[403174845,1769243205413,-4561.99717511,0.00012377,2]
[403174846,1769243205624,-523.22055326,0.00012499,2]
[403174847,1769243208640,-211.005736,0.00012499,2]
[403174848,1769243209997,-175.68786292,0.00012499,2]
[403174849,1769243211624,-299.35701369,0.00012499,2]
[403174850,1769243214908,-325.94039195,0.00012499,2]
[403174851,1769243216519,-220.54251313,0.00012499,2]
[403174852,1769243219476,-201.35302676,0.00012499,2]
[403174853,1769243222780,-150.0,0.00012498,2]
[403174854,1769243222846,-16.16560413,0.00012499,2]
[403174855,1769243225626,-155.03186656,0.00012498,2]
[403174856,1769243227592,-151.0,0.00012495,2]
[403174857,1769243227654,-144.86608011,0.00012497,2]
[403174858,1769243228467,205.0,9.8e-05,2]
[403174859,1769243233665,-151.0,0.00012495,2]
[403174860,1769243233728,-24.19791443,0.00012495,2]
[403174861,1769243235607,-126.80208557,0.00012495,2]
[403174862,1769243235675,-135.85672207,0.00012495,2]
[403174863,1769243238769,-15.14327793,0.00012495,2]
[403174864,1769243238830,-151.0,0.00012495,2]
[403174865,1769243238889,-151.0,0.00012495,2]
[403174866,1769243238948,-41.83128175,0.00012495,2]
[403174867,1769243241738,-109.16871825,0.00012495,2]
[403174868,1769243241797,-151.0,0.00012495,2]
[403174869,1769243241856,-33.52690526,0.00012495,2]
[403174870,1769243247045,-117.47309474,0.00012495,2]
[403174871,1769243247100,-147.40423902,0.00012495,2]
[403174872,1769243250009,-3.59576098,0.00012495,2]
[403174873,1769243250070,-151.0,0.00012495,2]
[403174874,1769243250129,-43.98853525,0.00012495,2]
[403174875,1769243252772,-107.01146475,0.00012495,2]
[403174876,1769243252832,-73.62282244,0.00012495,2]
[403174877,1769243252932,2100.0,0.000129,4]
[403174878,1769243254883,4300.0,0.000139,5]
[403174879,1769243255986,-274.14035493,0.00012495,2]
[403174880,1769243258117,-152.23682263,0.00012495,2]
[403174881,1769243258180,-147.76317737,0.00012495,2]
[403174882,1769243260769,-352.23682263,0.00012495,2]
[403174883,1769243260835,-500.0,0.00012495,2]
[403174884,1769243260897,-500.0,0.00012495,2]
[403174885,1769243260967,-500.0,0.00012495,2]
[403174886,1769243261029,-500.0,0.00012495,2]
[403174887,1769243261092,-500.0,0.00012495,2]
[403174888,1769243261152,-500.0,0.00012495,2]
[403174889,1769243261214,-500.0,0.00012495,2]
[403174890,1769243261281,-500.0,0.00012495,2]
[403174891,1769243261348,-500.0,0.00012495,2]
[403174892,1769243261416,-61.22417027,0.00012495,2]
[403174893,1769243262823,-173.0880142,0.00012495,2]
[403174894,1769243262890,-500.0,0.00012495,2]
[403174895,1769243262958,-500.0,0.00012495,2]
[403174896,1769243263029,-500.0,0.00012495,2]
[403174897,1769243263095,-500.0,0.00012495,2]
[403174898,1769243263160,-500.0,0.00012495,2]
[403174899,1769243263223,-105.13391989,0.00012497,2]
[403174900,1769243263287,-300.0,0.00012497,2]
[403174901,1769243263387,-344.96813344,0.00012498,2]
[403174902,1769243263512,-500.0,0.00012498,2]
[403174903,1769243263617,-500.0,0.00012498,2]
[403174904,1769243263720,-500.0,0.00012498,2]
[403174905,1769243264020,-500.0,0.00012498,2]
[403174906,1769243264121,-500.0,0.00012498,2]
[403174907,1769243264227,-500.0,0.00012498,2]
[403174908,1769243264335,-500.0,0.00012498,2]
[403174909,1769243264444,-271.03743256,0.00012498,2]
[403174910,1769243264550,-500.0,0.00012498,2]
[403174911,1769243264654,-500.0,0.00012498,2]
[403174912,1769243264760,-500.0,0.00012498,2]
[403174913,1769243264864,-500.0,0.00012498,2]
[403174914,1769243264972,-500.0,0.00012498,2]
[403174915,1769243265251,-500.0,0.00012495,2]
[403174916,1769243265365,-500.0,0.00012498,2]
[403174917,1769243265475,-500.0,0.00012498,2]
[403174918,1769243265586,-200.0,0.00012498,2]
[403174919,1769243265730,-500.0,0.00012495,2]
[403174920,1769243265928,-341.44833593,0.00012495,2]
[403174921,1769243267030,-158.55166407,0.00012495,2]
[403174922,1769243267114,-500.0,0.00012495,2]
[403174923,1769243268703,-500.0,0.00012495,2]
[403174924,1769243268715,-464.84584815,0.00012495,2]
[403174925,1769243268775,-49.64178843,0.00012495,2]
[403174926,1769243268786,-9950.36821157,0.00012499,2]
[403174927,1769243268842,-10000.01,0.00012499,2]
[403174928,1769243268896,-500.0,0.00012499,2]
[403174929,1769243268962,-9000.01,0.00012499,2]
[403174930,1769243269027,-7134.59108106,0.00012499,2]
[403174931,1769243269038,-200.0,0.00012499,2]
[403174932,1769243269050,-197.52838927,0.00012499,2]
[403174933,1769243269061,-500.0,0.00012499,2]
[403174934,1769243269072,-373.33388624,0.00012499,2]
[403174935,1769243269084,-423.63608392,0.00012499,2]
[403174936,1769243269095,-319.87673959,0.00012499,2]
[403174937,1769243269106,-500.0,0.00012499,2]
[403174938,1769243269117,-351.04381992,0.00012499,2]
[403174939,1769243269178,-148.95618008,0.00012499,2]
[403174940,1769243269189,-327.67039728,0.00012499,2]
[403174941,1769243269201,-9523.38342264,0.000125,2]
[403174942,1769243269379,-158.55166407,0.000125,2]
[403174943,1769243269440,-500.0,0.000125,2]
[403174944,1769243269523,-8682.90667186,0.000125,2]
[403174945,1769243269655,-327.37123182,0.000125,2]
[403174946,1769243269780,-500.0,0.00012495,2]
[403174947,1769243269959,-9500.01,0.000125,2]
[403174948,1769243270020,-10000.01,0.000125,2]
[403174949,1769243270076,-10000.01,0.000125,2]
[403174950,1769243270143,-10000.01,0.000125,2]
[403174951,1769243270201,-10000.01,0.000125,2]
[403174952,1769243270260,-10000.01,0.000125,2]
[403174953,1769243270314,-500.0,0.000125,2]
[403174954,1769243270364,-9000.01,0.000125,2]
[403174955,1769243270424,-10000.01,0.000125,2]
[403174956,1769243271422,-430.10190951,0.000125,2]
[403174957,1769243274200,-244.23037583,0.00012495,2]
[403174958,1769243274256,-39.35194224,0.000125,2]
[403174959,1769243276434,-174.33941195,0.000125,2]
[403174960,1769243278362,-208.68743832,0.000125,2]
[403174961,1769243281686,-260.40167576,0.000125,2]
[403174962,1769243283316,-190.28,0.000125,2]
[403174965,1769243292915,-155.66064199,0.000124,2]
[403174966,1769243296070,-344.33935801,0.000124,2]
[403174967,1769243297753,-410.69820114,0.000124,2]
[403174968,1769243300602,-1129.58360968,0.000124,2]
[403174969,1769243302274,2736.91287871,0.0001,2]
[403174970,1769243302867,-159.27633665,0.000124,2]
[403174971,1769243305543,268.40264442,0.000107,2]
[403174972,1769243306662,-165.00301899,0.000124,2]
[403174973,1769243308891,-287.27718627,0.000124,2]
[403174974,1769243310659,-194.78001737,0.000124,2]
[403174975,1769243312056,6994.69447687,0.0001,2]
[403174976,1769243312117,5044.59552672,0.0001,2]
[403174977,1769243312334,-153.683692,0.000124,2]
[403174978,1769243314936,-236.39367648,0.000124,2]
[403174979,1769243321516,-231.78535653,0.000124,2]
[403174980,1769243325952,-310.54156861,0.000124,2]
[403174981,1769243328727,-406.49236603,0.000124,2]
[403174982,1769243332221,-240.29600961,0.000124,2]
[403174983,1769243335197,-219.9643608,0.000124,2]
[403174984,1769243338737,-325.05363435,0.000124,2]
[403174985,1769243340928,-184.41117946,0.000124,2]
[403174986,1769243340992,-26.23804371,0.00012499,2]
[403174987,1769243342940,-595.09543026,0.00012499,2]
[403174988,1769243346029,-305.66652603,0.00012499,2]
[403174989,1769243346087,-69.22170446,0.00012499,2]
[403174990,1769243348322,-230.77829554,0.00012499,2]
[403174991,1769243348382,-59.72165074,0.000125,2]
[403174992,1769243350128,-67.21788099,0.000125,2]
[403174993,1769243350148,-237.7575,0.000125,2]
[403174994,1769243350169,-200.0,0.000125,2]
[403174995,1769243350188,-307.61058174,0.000125,2]
[403174996,1769243350210,-4499.60800491,0.000125,2]
[403174997,1769243352533,-216.64293227,0.000125,2]
[403174998,1769243354682,-200.63335751,0.000125,2]
[403174999,1769243356829,-300.0,0.000125,2]
[403175000,1769243359759,-333.2158016,0.000125,2]
[403175001,1769243367012,-365.95735116,0.000125,2]
[403175002,1769243368695,-215.19509579,0.000125,2]
[403175003,1769243370986,-210.36719805,0.000125,2]
[403175004,1769243371219,-4955.41447328,0.000125,2]
[403175005,1769243371377,-10000.01,0.000125,2]
[403175006,1769243371560,-10000.01,0.000125,2]
[403175007,1769243371766,-10000.01,0.000125,2]
[403175008,1769243372000,-10000.01,0.000125,2]
[403175009,1769243372176,-10000.01,0.000125,2]
[403175010,1769243372394,-10000.01,0.000125,2]
[403175011,1769243372489,-245.70075882,0.000125,2]
[403175012,1769243372574,-10000.01,0.000125,2]
[403175013,1769243373710,-10000.01,0.000125,2]
[403175014,1769243373891,-10000.01,0.000125,2]
[403175015,1769243375854,-496.47191495,0.000125,2]
[403175016,1769243376776,-10000.01,0.000125,2]
[403175017,1769243377004,-10000.01,0.000125,2]
[403175018,1769243377239,-10000.01,0.000125,2]
[403175019,1769243377388,-10000.01,0.000125,2]
[403175020,1769243377549,-192.212083,0.000125,2]
[403175021,1769243377618,-10000.01,0.000125,2]
[403175022,1769243377805,-10000.01,0.000125,2]
[403175023,1769243378013,-10000.01,0.000125,2]
[403175024,1769243381081,-167.29847352,0.000125,2]
[403175025,1769243383346,-473.10450358,0.000125,2]
[403175026,1769243385580,-399.30939117,0.000125,2]
[403175027,1769243387851,-155.03186655,0.000125,2]
[403175028,1769243390518,-252.42994815,0.000125,2]
[403175029,1769243392754,-235.34687346,0.00012437,2]
[403175030,1769243394930,-187.46022887,0.00012437,2]
[403175031,1769243399182,-154.69979071,0.00012437,2]
[403175032,1769243401459,-300.0,0.00012436,2]
[403175033,1769243401519,-103.16065364,0.00012436,2]
[403175034,1769243413871,-164.736033,0.000124,2]
[403175035,1769243416217,-302.19129105,0.000124,2]
[403175036,1769243419799,-167.44743681,0.000124,2]
[403175037,1769243419862,-18.72455567,0.00012436,2]
[403175038,1769243423297,-451.24011516,0.00012436,2]
[403175039,1769243425603,-259.33409053,0.00012436,2]
[403175040,1769243427846,-367.540585,0.00012436,2]
[403175041,1769243427910,-167.7003649,0.00012436,2]
[403175042,1769243431320,-132.2996351,0.00012436,2]
[403175043,1769243431377,-134.0424119,0.00012437,2]
[403175049,1769243432432,-10240.46714506,0.00012437,2]
[403175050,1769243432443,-634.37476086,0.00012462,2]
[403175051,1769243432452,-150.0,0.00012499,2]
[403175052,1769243432462,-187941.50041019,0.000125,2]
[403175053,1769243432472,-634.37476086,0.00012524,2]
[403175054,1769243432482,-200.0,0.00012624,2]
[403175055,1769243432491,-200.0,0.00012625,2]
[403175056,1769243432501,-200.0,0.0001275,2]
[403175057,1769243432510,-200.0,0.00012751,2]
[403175058,1769243432519,-242.66,0.00012765,2]
[403175059,1769243432530,-166.97,0.00012793,2]
[403175060,1769243432539,-200.0,0.00012878,2]
[403175061,1769243432549,-200.0,0.00012879,2]
[403175062,1769243432560,-331.15868016,0.000129,2]
[403175063,1769243432570,-10493.55049482,0.000129,2]
[403175065,1769243432580,-205251.79166298,0.00013,2]
[403175067,1769243432590,-653.04580214,0.00013,2]
[403175069,1769243432599,-577.59780779,0.00013,2]
[403175071,1769243432608,-174.50686631,0.00013007,2]
[403175072,1769243432618,-200.0,0.00013008,2]
[403175074,1769243432628,-5155.24021396,0.00013011,2]
[403175076,1769243432640,-242.66,0.00013039,2]
[403175078,1769243432650,-500.0,0.00013043,2]
[403175080,1769243432659,-578.20924308,0.00013051,2]
[403175082,1769243432668,-743.50770149,0.00013051,2]
[403175084,1769243432677,-9552.16786547,0.00013051,2]
[403175086,1769243432687,-500.0,0.00013051,2]
[403175087,1769243432697,-209.40437684,0.00013051,2]
[403175089,1769243432706,-500.0,0.00013051,2]
[403175091,1769243432716,-500.0,0.00013051,2]
[403175093,1769243432725,-500.0,0.00013051,2]
[403175094,1769243432734,-174.61919141,0.00013051,2]
[403175096,1769243432743,-500.0,0.00013051,2]
[403175098,1769243432753,-500.0,0.00013051,2]
[403175100,1769243432762,-151.0,0.00013051,2]
[403175102,1769243432771,-500.0,0.00013051,2]
[403175104,1769243432781,-151.0,0.00013051,2]
[403175106,1769243432790,-500.0,0.00013051,2]
[403175107,1769243432800,-151.0,0.00013051,2]
[403175109,1769243432809,-500.0,0.00013051,2]
[403175111,1769243432818,-151.0,0.00013051,2]
[403175113,1769243432827,-500.0,0.00013051,2]
[403175115,1769243432836,-151.0,0.00013051,2]
[403175116,1769243432845,-500.0,0.00013051,2]
[403175118,1769243432854,-151.0,0.00013051,2]
[403175120,1769243432864,-151.0,0.00013051,2]
[403175122,1769243432873,-151.0,0.00013051,2]
[403175124,1769243432882,-250.0,0.00013051,2]
[403175126,1769243432891,-151.0,0.00013051,2]
[403175127,1769243432900,-151.0,0.00013051,2]
[403175129,1769243432909,-151.0,0.00013051,2]
[403175131,1769243432917,-151.0,0.00013051,2]
[403175132,1769243432926,-721.12765535,0.00013051,2]
[403175133,1769243432937,-250.0,0.00013051,2]
[403175134,1769243432945,-322.6107,0.00013051,2]
[403175135,1769243432958,-250.0,0.00013051,2]
[403175136,1769243432967,-854.2589148,0.00013051,2]
[403175137,1769243432976,-250.0,0.00013051,2]
[403175138,1769243432984,-250.0,0.00013051,2]
[403175139,1769243432995,-250.0,0.00013051,2]
[403175140,1769243433004,-250.0,0.00013051,2]
[403175141,1769243433012,-500.0,0.00013051,2]
[403175142,1769243433022,-250.0,0.00013051,2]
[403175143,1769243433033,-500.0,0.00013051,2]
[403175144,1769243433043,-250.0,0.00013051,2]
[403175145,1769243433052,-250.0,0.00013051,2]
[403175146,1769243433061,-500.0,0.00013051,2]
[403175147,1769243433071,-250.0,0.00013051,2]
[403175148,1769243433080,-250.0,0.00013051,2]
[403175149,1769243433089,-500.0,0.00013051,2]
[403175150,1769243433098,-250.0,0.00013051,2]
[403175151,1769243433107,-250.0,0.00013051,2]
[403175152,1769243433116,-500.0,0.00013051,2]
[403175153,1769243433125,-250.0,0.00013051,2]
[403175154,1769243433134,-500.0,0.00013051,2]
[403175155,1769243433144,-500.0,0.00013051,2]
[403175156,1769243433153,-250.0,0.00013051,2]
[403175157,1769243433162,-500.0,0.00013051,2]
[403175158,1769243433172,-250.0,0.00013051,2]
[403175159,1769243433181,-500.0,0.00013051,2]
[403175160,1769243433190,-500.0,0.00013051,2]
[403175161,1769243433199,-500.0,0.00013051,2]
[403175162,1769243433208,-500.0,0.00013051,2]
[403175163,1769243433217,-500.0,0.00013051,2]
[403175164,1769243433227,-500.0,0.00013051,2]
[403175165,1769243433236,-500.0,0.00013051,2]
[403175166,1769243433246,-500.0,0.00013051,2]
[403175167,1769243433255,-500.0,0.00013051,2]
[403175168,1769243433264,-500.0,0.00013051,2]
[403175169,1769243433273,-500.0,0.00013051,2]
[403175170,1769243433283,-500.0,0.00013051,2]
[403175171,1769243433292,-500.0,0.00013051,2]
[403175172,1769243433303,-500.0,0.00013051,2]
[403175173,1769243433312,-500.0,0.00013051,2]
[403175174,1769243433322,-500.0,0.00013051,2]
[403175175,1769243433332,-500.0,0.00013051,2]
[403175176,1769243433342,-500.0,0.00013051,2]
[403175177,1769243433351,-500.0,0.00013051,2]
[403175178,1769243433360,-151.0,0.00013051,2]
[403175179,1769243433370,-500.0,0.00013051,2]
[403175180,1769243433379,-500.0,0.00013051,2]
[403175181,1769243433390,-500.0,0.00013051,2]
[403175182,1769243433403,-500.0,0.00013051,2]
[403175183,1769243433412,-500.0,0.00013051,2]
[403175184,1769243433422,-500.0,0.00013051,2]
[403175185,1769243433432,-500.0,0.00013052,2]
[403175186,1769243433442,-210.76,0.00013086,2]
[403175187,1769243433451,-7273.71841602,0.00013106,2]
[403175188,1769243433462,-408.0,0.00013108,2]
[403175189,1769243433472,-294.0,0.00013108,2]
[403175190,1769243433482,-290.0,0.00013126,2]
[403175191,1769243433492,-178.0,0.00013149,2]
[403175192,1769243433502,-929.0,0.0001317,2]
[403175193,1769243433511,-17515.52240276,0.00013172,2]
[403175194,1769243433521,-291.52768833,0.00013186,2]
[403175195,1769243433531,-2040.69381834,0.00013186,2]
[403175196,1769243433541,-242.66,0.00013313,2]
[403175197,1769243433550,-500.0,0.00013325,2]
[403175198,1769243433559,-150.0,0.00013388,2]
[403175199,1769243433569,-150.0,0.00013388,2]
[403175200,1769243433578,-150.0,0.00013388,2]
[403175201,1769243433587,-150.0,0.00013388,2]
[403175202,1769243433597,-150.0,0.00013388,2]
[403175203,1769243433606,-2186.59,0.00013425,2]
[403175204,1769243433615,-221.2818579,0.00013443,2]
[403175205,1769243433625,-150.0,0.00013443,2]
[403175206,1769243433636,-150.0,0.00013443,2]
[403175207,1769243433646,-150.0,0.00013443,2]
[403175208,1769243433657,-10493.5504948,0.00013456,2]
[403175209,1769243433667,-150.0,0.00013498,2]
[403175210,1769243433678,-200.0,0.00013498,2]
[403175211,1769243433687,-200.0,0.00013498,2]
[403175212,1769243433697,-150.0,0.00013552,2]
[403175213,1769243433707,-242.68694153,0.00013587,2]
[403175214,1769243433716,-255.0,0.00013599,2]
[403175215,1769243433725,-771.01748645,0.00013599,2]
[403175216,1769243433734,-173.60858564,0.00013599,2]
[403175217,1769243433743,-181.08010149,0.00013599,2]
[403175218,1769243433754,-230.16041742,0.00013599,2]
[403175219,1769243433764,-885.86649465,0.00013599,2]
[403175220,1769243433773,-151.0,0.00013599,2]
[403175221,1769243433782,-398.16215466,0.00013599,2]
[403175222,1769243433791,-246.76380553,0.00013607,2]
[403175223,1769243433800,-5155.24021396,0.00013622,2]
[403175224,1769243433810,-1680.0,0.0001368,2]
[403175225,1769243433820,-506.97630376,0.00013698,2]
[403175226,1769243433829,-500.0,0.00013698,2]
[403175227,1769243433838,-500.0,0.00013698,2]
[403175228,1769243433847,-509.72297656,0.00013698,2]
[403175229,1769243433857,-636.91,0.00013698,2]
[403175230,1769243433868,-636.91,0.00013698,2]
[403175231,1769243433878,-636.91,0.00013698,2]
[403175232,1769243433889,-636.91,0.00013698,2]
[403175233,1769243433900,-500.0,0.00013698,2]
[403175234,1769243433909,-500.0,0.00013698,2]
[403175235,1769243433918,-500.0,0.00013698,2]
[403175236,1769243433928,-226.94622895,0.00013698,2]
[403175237,1769243433939,-448.17762938,0.00013698,2]
[403175238,1769243433948,-500.0,0.00013698,2]
[403175239,1769243433960,-500.0,0.00013698,2]
[403175240,1769243433970,-500.0,0.00013698,2]
[403175241,1769243433981,-500.0,0.00013698,2]
[403175242,1769243433992,-500.0,0.00013698,2]
[403175243,1769243434003,-500.0,0.00013698,2]
[403175244,1769243434013,-500.0,0.00013698,2]
[403175245,1769243434023,-500.0,0.00013698,2]
[403175246,1769243434035,-500.0,0.00013698,2]
[403175247,1769243434044,-500.0,0.00013698,2]
[403175248,1769243434053,-500.0,0.00013698,2]
[403175249,1769243434063,-500.0,0.00013698,2]
[403175250,1769243434072,-500.0,0.00013698,2]
[403175251,1769243434081,-500.0,0.00013698,2]
[403175252,1769243434090,-500.0,0.00013698,2]
[403175253,1769243434100,-589.03869133,0.00013698,2]
[403175254,1769243434109,-500.0,0.00013698,2]
[403175255,1769243434118,-306.06500178,0.00013698,2]
[403175256,1769243434128,-500.0,0.00013698,2]
[403175257,1769243434138,-501.01289097,0.00013698,2]
[403175258,1769243434147,-500.0,0.00013698,2]
[403175259,1769243434158,-519.05995183,0.00013698,2]
[403175260,1769243434168,-500.0,0.00013698,2]
[403175261,1769243434177,-462.63319291,0.00013698,2]
[403175262,1769243434186,-500.0,0.00013698,2]
[403175263,1769243434196,-502.44260764,0.00013698,2]
[403175264,1769243434205,-893.47,0.00013699,2]
[403175265,1769243434215,-250.0,0.00013699,2]
[403175266,1769243434224,-250.0,0.00013699,2]
[403175267,1769243434233,-250.0,0.00013699,2]
[403175268,1769243434243,-250.0,0.00013699,2]
[403175269,1769243434252,-250.0,0.00013699,2]
[403175270,1769243434261,-250.0,0.00013699,2]
[403175271,1769243434561,-250.0,0.00013699,2]
[403175272,1769243434571,-250.0,0.00013699,2]
[403175273,1769243434580,-250.0,0.00013699,2]
[403175274,1769243434589,-250.0,0.00013699,2]
[403175275,1769243434598,-250.0,0.00013699,2]
[403175276,1769243434607,-500.0,0.00013699,2]
[403175277,1769243434617,-500.0,0.00013699,2]
[403175278,1769243434626,-500.0,0.00013699,2]
[403175279,1769243434635,-500.0,0.00013699,2]
[403175280,1769243434644,-500.0,0.00013699,2]
[403175281,1769243434653,-500.0,0.00013699,2]
[403175282,1769243434662,-500.0,0.00013699,2]
[403175283,1769243434671,-500.0,0.00013699,2]
[403175284,1769243434680,-500.0,0.00013699,2]
[403175285,1769243434689,-500.0,0.00013699,2]
[403175286,1769243434698,-500.0,0.00013699,2]
[403175287,1769243434707,-500.0,0.00013699,2]
[403175288,1769243434717,-500.0,0.00013699,2]
[403175289,1769243434726,-500.0,0.00013699,2]
[403175290,1769243434735,-500.0,0.00013699,2]
[403175291,1769243434744,-500.0,0.00013699,2]
[403175292,1769243434753,-500.0,0.00013699,2]
[403175293,1769243434763,-500.0,0.00013699,2]
[403175294,1769243434772,-500.0,0.00013699,2]
[403175295,1769243434781,-500.0,0.00013699,2]
[403175296,1769243434790,-500.0,0.00013699,2]
[403175297,1769243434800,-500.0,0.00013699,2]
[403175298,1769243434809,-500.0,0.00013699,2]
[403175299,1769243434818,-500.0,0.00013699,2]